[Event "Prague Festival-Futures 2022"]
[Site "Prague"]
[Date "2022.06.11"]
[Round "4.3"]
[White "Bouska, Jiri"]
[Black "Kuru, Atilla"]
[Result "0-1"]
[ECO "C07"]
[WhiteElo "2117"]
[BlackElo "2023"]
[Annotator "TA"]
[PlyCount "90"]
[EventDate "2022.06.07"]
[EventType "tourn"]
[EventCountry "CZE"]
[SourceTitle "playchess.com"]
[Source "ChessBase"]
[SourceQuality "1"]
[TimeControl "40/5400+30:1800+30"]

{[%evp 14,90,20,10,22,15,24,2,30,12,16,0,0,-2,0,0,0,-22,-14,-29,-30,-33,-35,-28,-32,-74,-56,-66,-17,-36,-16,-36,-35,-40,-51,-127,-115,-135,-135,-147,-127,-284,-284,-291,-56,-57,-74,-71,-61,-327,-325,-316,-320,-274,-269,-258,-252,-268,-254,-492,-483,-499,-487,-452,-428,-388,-366,-935,-490,-848,-842,-821,-810,-799,-796,-662,-654,-639,-631]} 1. e4 {[%emt 0:00:18]} e6 {[%emt 0:00:07]} 2. d4 {[%emt 0:00:16]} d5 {[%emt 0:00:05]} 3. Nd2 {[%emt 0:00:12]} c5 {[%emt 0:00:06]} 4. Ngf3 {[%emt 0:00:10]} cxd4 {[%emt 0:00:16]} 5. Nxd4 {[%emt 0:00:08]} Nc6 {[%emt 0:00:06]} 6. Bb5 {[%emt 0:00:06]} Bd7 {[%emt 0:00:05]} 7. Nxc6 {[%emt 0:00:30]} bxc6 {[%emt 0:00:18]} 8. Bd3 {[%emt 0:00:09]} Bd6 {[%emt 0:01:31] C07: French Tarrasch: 3...c5, 4 Ngf3 and 4 exd5 Qxd5.} 9. Qe2 {[%emt 0:00:07]} Ne7 {[%emt 0:03:16]} 10. e5 {[%emt 0:02:11] now scores much better than the old 10.Nf3.} Bc5 {[%emt 0:00:07] [#] The position is equal.} 11. Nb3 $146 {[%emt 0:00:49]} ({Predecessor:} 11. Nf3 h6 12. O-O Bb6 13. c3 c5 14. Bf4 Qc7 15. Rac1 Bc6 16. b4 Rc8 17. bxc5 Bxc5 {1-0 (46) Lou,Y (2472)-Itgelt,K (2184) Tornelo INT 2021}) 11... Bb6 {[%emt 0:00:10]} 12. Be3 {[%emt 0:00:40] Inhibits c5.} Qc7 {[%emt 0:00:44]} 13. f4 $1 {[%emt 0:10:14]} c5 {[%emt 0:04:01]} 14. c4 $1 {[%emt 0:00:40]} (14. Qg4 $2 c4 15. Qe2 Bb5 $19) 14... d4 {[%emt 0:00:15]} 15. Bf2 {[%emt 0:02:03]} Ba5+ {[%emt 0:00:35]} 16. Nxa5 {[%emt 0:11:25]} Qxa5+ {[%emt 0:00:06]} 17. Qd2 {[%emt 0:00:42]} Qxd2+ {[%emt 0:04:48]} 18. Kxd2 {[%emt 0:00:02][%cal Ob2b4]} a5 {[%emt 0:00:22]} 19. g4 {[%emt 0:05:54]} Rb8 {[%emt 0:00:29]} 20. Rab1 {[%emt 0:00:54]} Nc6 {[%emt 0:00:49]} (20... Bc6 $15 21. Rhe1 h5) 21. b3 $11 {[%emt 0:05:37]} h5 {[%emt 0:06:28]} 22. gxh5 {[%emt 0:03:32]} Rxh5 {[%emt 0:00:23]} 23. h4 {[%emt 0:00:44]} Nb4 {[%emt 0:03:28][%cal Bc6b4,Bb4a2,Ba2c3][%mdl 32]} 24. Be2 {[%emt 0:14:52]} (24. Rhg1 $15) 24... Rf5 $17 {[%emt 0:01:05]} 25. a3 {[%emt 0:07:12] [#]} Na2 {[%emt 0:00:05] And now ...Nc3 would win.} 26. Bg3 {[%emt 0:01:33]} Nc3 {[%emt 0:00:07] Hoping for ...Ne4+.} 27. Bd3 {[%emt 0:01:25] Prevents Ne4+.} (27. Rhg1 $17 {keeps fighting.}) 27... Bc6 $19 {[%emt 0:01:01]} ({But not} 27... Nxb1+ $2 28. Rxb1 Rh5 29. Be4 $17) 28. Bxf5 {[%emt 0:03:27] Black must now prevent Bc2.} exf5 {[%emt 0:00:02]} (28... Bxh1 $19 29. Rxh1 exf5) 29. Rhg1 $15 {[%emt 0:00:31]} Be4 {[%emt 0:00:21]} 30. Rb2 {[%emt 0:01:32]} Na4 $36 {[%emt 0:00:05][%mdl 2112] [#] Pin. Black fights for an advantage. Black is much more active.} 31. Rbb1 {[%emt 0:02:14][%mdl 8192] White is on the road to losing.} Bxb1 $19 {[%emt 0:00:14]} 32. bxa4 {[%emt 0:01:39][%mdl 4096] Endgame KRB-KRB} Be4 {[%emt 0:00:02] aiming for ...Rb2+.} 33. Be1 {[%emt 0:00:44]} Rb2+ {[%emt 0:00:42]} 34. Kd1 {[%emt 0:01:14]} d3 {[%emt 0:01:10] Threatens to win with ...Bf3+.} 35. Bd2 {[%emt 0:00:55]} ({Don't blunder} 35. Rxg7 $2 Bf3+ 36. Kc1 Rc2+ 37. Kb1 Be4 38. Rg8+ Ke7 $19) 35... g6 {[%emt 0:07:04]} 36. Rg3 $2 {[%emt 0:01:01]} (36. Ke1 {is a better defense.}) 36... Rc2 {[%emt 0:00:36]} ({Don't go for} 36... Rb1+ $2 37. Bc1 $19) 37. Bxa5 {[%emt 0:00:29]} Rxc4 {[%emt 0:00:10]} 38. Bb6 {[%emt 0:00:19]} Rc3 {[%emt 0:00:28]} 39. e6 {[%emt 0:04:02]} c4 {[%emt 0:01:14]} 40. Bc5 {[%emt 0:00:00]} (40. Bd4 Rb3 41. Kd2 Rxa3 42. Rg1 Ra2+ 43. Kc3 Rc2+ 44. Kb4) 40... fxe6 {[%emt 0:00:00] Strongly threatening ...Rb3. Black is clearly winning.} 41. Rxg6 {[%emt 0:00:41]} (41. Bb4 $142 Rb3 42. Kd2) 41... Bf3+ {[%emt 0:00:47]} 42. Ke1 {[%emt 0:00:49]} Rc1+ {[%emt 0:00:05]} 43. Kd2 {[%emt 0:00:42]} Rc2+ {[%emt 0:00:02]} 44. Ke3 {[%emt 0:00:08]} d2 {[%emt 0:00:06]} 45. Rxe6+ {[%emt 0:00:08]} Kf7 {[%emt 0:00:08] Weighted Error Value: White=0.45/Black=0.22 (precise)} 0-1

[Event "Prague Festival-Futures 2022"]
[Site "Prague"]
[Date "2022.06.11"]
[Round "4.4"]
[White "Balint, Peter"]
[Black "Sowinski, Pawel"]
[Result "1/2-1/2"]
[ECO "C19"]
[WhiteElo "2097"]
[BlackElo "2060"]
[Annotator "TA"]
[PlyCount "132"]
[EventDate "2022.06.07"]
[EventType "tourn"]
[EventCountry "CZE"]
[SourceTitle "playchess.com"]
[Source "ChessBase"]
[SourceQuality "1"]
[TimeControl "40/5400+30:1800+30"]

{[%evp 16,132,2,0,0,0,0,0,0,-32,-31,-29,-19,-29,-20,-54,-46,-41,-38,-58,-28,-35,-28,-35,-35,-35,-20,-20,-20,-22,-11,-18,29,43,49,-62,19,-158,0,0,2,0,7,5,10,0,39,16,29,-33,-14,-57,0,0,0,0,111,88,139,122,156,64,69,35,52,9,15,0,88,71,209,206,252,222,225,213,228,220,406,402,384,311,377,351,684,687,754,743,823,825,816,808,801,802,762,668,615,600,674,605,672,658,633,500,4618,368,318,62,58,16,17,17,17,0,16,0,19,0,22]} 1. e4 {[%emt 0:00:02]} e6 {[%emt 0:00:04]} 2. d4 {[%emt 0:00:09]} d5 {[%emt 0:00:02]} 3. Nc3 {[%emt 0:00:14]} Bb4 {[%emt 0:00:02]} 4. e5 {[%emt 0:00:16]} c5 {[%emt 0:00:01]} 5. a3 {[%emt 0:00:10]} Bxc3+ {[%emt 0:00:02]} 6. bxc3 {[%emt 0:00:06]} Qa5 {[%emt 0:00:02]} 7. Qd2 {[%emt 0:09:42]} Nc6 {[%emt 0:07:13]} 8. Nf3 {[%emt 0:01:35]} Nge7 {[%emt 0:05:54]} 9. Bd3 {[%emt 0:02:54]} c4 {[%emt 0:01:12] C19: French: 3 Nc3 Bb4: Main line: 7 Nf3 and 7 a4.} 10. Be2 {[%emt 0:00:27]} Qa4 {[%emt 0:00:37]} 11. O-O {[%emt 0:00:39]} Bd7 {[%emt 0:01:28]} 12. Ne1 {[%emt 0:14:56]} O-O-O {[%emt 0:01:06]} 13. f4 {[%emt 0:02:23] [#]} h5 $146 {[%emt 0:04:46]} ({Predecessor:} 13... f5 14. h4 Rdg8 15. Kf2 h6 16. Nf3 Be8 17. Bb2 Nd8 18. Rh1 Bh5 19. Rag1 g6 {0-1 (38) Van Walraven,A (1613)-Abma,K (1945) Groningen 2017}) 14. Qd1 {[%emt 0:06:56]} Rh7 {[%emt 0:05:21]} 15. Be3 {[%emt 0:01:07]} Nf5 {[%emt 0:04:37]} 16. Bf2 {[%emt 0:03:38]} f6 {[%emt 0:04:12]} 17. Nf3 {[%emt 0:01:03]} Be8 {[%emt 0:09:16]} 18. Qd2 {[%emt 0:03:33]} Bg6 {[%emt 0:04:58]} 19. Ra2 {[%emt 0:02:21]} b6 {[%emt 0:01:31]} 20. Re1 {[%emt 0:03:50]} Rg8 {[%emt 0:06:17]} 21. Bf1 {[%emt 0:05:17]} Bf7 {[%emt 0:04:38]} 22. g3 {[%emt 0:19:30]} Nh6 {[%emt 0:08:05]} 23. Bh3 {[%emt 0:06:37][%cal Of4f5]} Ng4 {[%emt 0:01:00]} (23... Nd8 $142) 24. f5 $1 $11 {[%emt 0:08:32]} Nd8 {[%emt 0:04:20]} 25. Nh4 {[%emt 0:01:27]} (25. Be3 $14) 25... Qd7 {[%emt 0:02:28]} (25... fxe5 $15 26. Bxg4 hxg4) 26. Qf4 $2 {[%emt 0:01:18]} (26. a4 $11) 26... exf5 $2 {[%emt 0:00:39]} (26... fxe5 $17 27. dxe5 g5 28. fxg6 Bxg6 29. Bxg4 hxg4) 27. Qxf5 {[%emt 0:01:20]} Rhh8 {[%emt 0:08:43] Strongly threatening ...Be6.} ({Don't take} 27... Qxf5 28. Nxf5 Kc7 29. exf6 $14) 28. Qxd7+ {[%emt 0:00:44]} Kxd7 {[%emt 0:00:01]} 29. exf6 {[%emt 0:00:09]} gxf6 {[%emt 0:00:22]} 30. Raa1 {[%emt 0:00:30]} Ne6 {[%emt 0:05:18]} 31. Bg2 {[%emt 0:00:47]} (31. Be3 $5) 31... Ng5 {[%emt 0:00:31]} 32. Nf5 {[%emt 0:01:58]} (32. Be3 $11) 32... Be6 {[%emt 0:01:53]} 33. Ne3 {[%emt 0:00:49]} Nxf2 {[%emt 0:01:08]} ({Black should play} 33... f5 $15) 34. Kxf2 {[%emt 0:00:05]} Kd6 {[%emt 0:00:05]} 35. h4 {[%emt 0:00:40]} Nf7 {[%emt 0:01:35]} (35... Nh3+ $11 {keeps the balance.} 36. Bxh3 Bxh3) 36. Bf3 $16 {[%emt 0:00:10]} Nd8 {[%emt 0:03:29]} (36... Rg7 $142) 37. Rab1 {[%emt 0:00:13] Black must now prevent Rb5.} Nc6 {[%emt 0:00:57]} 38. Rb5 {[%emt 0:00:21]} (38. a4 $16) 38... Ne7 $14 {[%emt 0:00:07]} 39. Rb2 {[%emt 0:02:06]} Rg7 {[%emt 0:02:49]} 40. Rbb1 {[%emt 0:00:00]} Bd7 {[%emt 0:00:00]} 41. Re2 {[%emt 0:04:55]} f5 {[%emt 0:10:50]} (41... Rhg8 $11) 42. Ng2 $1 $16 {[%emt 0:09:47][%cal Be3g2,Bg2f4,Bf4d5][%mdl 32]} Rhg8 {[%emt 0:04:47]} (42... Ng6 $16) 43. Rbe1 $18 {[%emt 0:05:58]} Nc6 {[%emt 0:06:33]} 44. Nf4 {[%emt 0:02:11]} Rxg3 {[%emt 0:01:17]} 45. Bxd5 {[%emt 0:02:49]} R8g4 {[%emt 0:00:01]} 46. Bf3 {[%emt 0:00:48] Really sharp!} (46. Nxh5 Rxc3 47. Nf6 Rf4+ 48. Kg2 Nxd4 $19) 46... Rg8 $2 {[%emt 0:00:22] [#]} (46... Rxf3+ {was worth a try.} 47. Kxf3 Rxh4) 47. Re6+ $1 {[%emt 0:02:18][%mdl 512]} Kc7 {[%emt 0:02:26]} 48. Nd5+ {[%emt 0:00:08]} Kc8 {[%emt 0:04:06]} 49. Rd6 {[%emt 0:02:13] Active counter play!} R3g6 {[%emt 0:04:50] [#]} (49... R8g7 50. Nf6 (50. Bxh5 Rg2+ 51. Kf1 Rh2 $14) 50... Nb8 51. Nxh5 R7g6) 50. Rxc6+ $1 {[%emt 0:02:33][%mdl 512]} Bxc6 {[%emt 0:00:04]} (50... Rxc6 51. Ne7+) 51. Ne7+ {[%emt 0:00:06][%mdl 64] Discovered Attack, Double Attack} Kd7 {[%emt 0:01:59]} 52. Bxc6+ {[%emt 0:00:05]} Rxc6 {[%emt 0:00:05]} 53. Nxg8 {[%emt 0:00:02][%mdl 4096] Endgame KRN-KR} Rg6 {[%emt 0:00:06]} 54. Ne7 {[%emt 0:00:09]} Rg4 {[%emt 0:00:02]} 55. Re5 {[%emt 0:03:06]} Rxh4 {[%emt 0:00:08]} 56. Nxf5 {[%emt 0:00:03]} Rh2+ {[%emt 0:00:13]} 57. Ke3 {[%emt 0:00:36] And now d5 would win.} Rxc2 {[%emt 0:00:03]} 58. d5 {[%emt 0:00:08]} Rxc3+ {[%emt 0:00:24]} 59. Kd4 {[%emt 0:00:06]} Rxa3 {[%emt 0:00:18]} (59... Rf3 $142 60. Kxc4 Rf1) 60. Kxc4 $2 {[%emt 0:02:02]} (60. Re7+ Kd8 61. d6) 60... Ra4+ {[%emt 0:00:24]} 61. Kb3 $2 {[%emt 0:00:26]} (61. Kd3 $18) 61... Rf4 $14 {[%emt 0:00:15]} 62. d6 {[%emt 0:00:42]} Kc6 $1 {[%emt 0:00:31] [#] The position is equal.} 63. Rd5 $1 {[%emt 0:00:56] d7 is the strong threat.} Kd7 $1 {[%emt 0:02:12]} (63... Kxd5 $2 64. d7 Ke6 65. d8=Q $1 $18) 64. Re5 {[%emt 0:00:51] aiming for Re7+.} Kc6 $1 {[%emt 0:00:01]} 65. Rd5 {[%emt 0:00:35] Hoping for d7.} Kd7 $1 {[%emt 0:00:01]} (65... Kxd5 $2 66. d7 Ke6 {[#]} 67. d8=Q $1 $18) 66. Re5 {[%emt 0:00:24] Threatens to win with Re7+.} Kc6 $1 {[%emt 0:00:01] Blacks defense is rewarded with a draw.  Weighted Error Value: White=0.36/Black=0.39} 1/2-1/2

[Event "Prague Festival-Futures 2022"]
[Site "Prague"]
[Date "2022.06.11"]
[Round "4.5"]
[White "Zelbova, Lada"]
[Black "Kovalskyi, Roman"]
[Result "0-1"]
[ECO "B36"]
[WhiteElo "1967"]
[BlackElo "2039"]
[Annotator "TA"]
[PlyCount "80"]
[EventDate "2022.06.07"]
[EventType "tourn"]
[EventCountry "CZE"]
[SourceTitle "playchess.com"]
[Source "ChessBase"]
[SourceQuality "1"]
[TimeControl "40/5400+30:1800+30"]

{[%evp 17,80,26,39,32,51,51,56,31,33,26,37,17,44,36,36,12,11,16,22,18,27,11,23,31,57,-24,-24,-33,-34,-15,-18,-36,0,-25,-6,-85,-87,-112,-101,-164,-181,-169,-182,-249,-218,-218,-215,-314,-284,-383,-321,-327,-313,-432,-419,-660,-660,-640,-595,-709,-698,-1710,-1758,-1402,-1363]} 1. e4 {[%emt 0:00:03]} c5 {[%emt 0:00:06]} 2. Nf3 {[%emt 0:00:05]} g6 {[%emt 0:00:04]} 3. d4 {[%emt 0:00:04]} cxd4 {[%emt 0:00:04]} 4. Nxd4 {[%emt 0:00:06]} Nc6 {[%emt 0:00:02]} 5. c4 {[%emt 0:00:17]} Nf6 {[%emt 0:00:08]} 6. Nc3 {[%emt 0:00:35]} d6 {[%emt 0:00:05]} 7. Be2 {[%emt 0:01:33]} Nxd4 {[%emt 0:00:14]} 8. Qxd4 {[%emt 0:00:06]} Bg7 {[%emt 0:00:06]} 9. O-O {[%emt 0:00:36]} O-O {[%emt 0:00:16]} 10. Qd3 {[%emt 0:00:50] B36: Sicilian: Maroczy Bind: Gurgenidze System.} a5 {[%emt 0:01:04]} 11. Be3 {[%emt 0:05:13]} a4 {[%emt 0:02:04]} 12. h3 {[%emt 0:09:24] White is slightly better.} Qa5 {[%emt 0:05:04] [#]} 13. Rab1 $146 {[%emt 0:16:39]} ({Predecessor:} 13. Rac1 Be6 14. Bd4 Qb4 15. Nb5 Rfc8 16. b3 axb3 17. axb3 Ra2 18. Bc3 Qxb3 19. Bxf6 Qxd3 20. Bxd3 Bxf6 {0-1 (37) Bennet Stevens,L (157)-Ashworth,M (192) Daventry 2017}) 13... Be6 {[%emt 0:09:43]} 14. Nd5 {[%emt 0:20:10]} Bxd5 {[%emt 0:04:13]} 15. exd5 {[%emt 0:02:44]} Nd7 {[%emt 0:02:32]} 16. Bd4 {[%emt 0:08:03]} Bxd4 {[%emt 0:07:18]} 17. Qxd4 {[%emt 0:00:05]} Qc5 {[%emt 0:00:28]} 18. Qe4 {[%emt 0:02:27]} Ne5 {[%emt 0:02:05]} 19. Kh1 {[%emt 0:00:40]} (19. Rfc1 {with more complications.} Kg7 20. Qh4 Rfe8 21. Qf4) 19... f5 {[%emt 0:19:58]} 20. Qf4 {[%emt 0:07:08]} b5 {[%emt 0:10:51]} 21. b4 {[%emt 0:03:56]} ({White should try} 21. cxb5 $14 Qxd5 22. a3) 21... axb3 $1 $11 {[%emt 0:00:27]} 22. axb3 {[%emt 0:00:06]} Ra2 {[%emt 0:01:33]} 23. Rfe1 {[%emt 0:02:58] Strongly threatening b4.} b4 {[%emt 0:01:28]} 24. Kg1 {[%emt 0:02:27]} Qa7 {[%emt 0:09:49]} 25. Bf1 {[%emt 0:02:10]} Kh8 {[%emt 0:05:15][%cal Og6g5]} 26. c5 {[%emt 0:12:10]} (26. h4 $11) 26... Qxc5 $17 {[%emt 0:01:24]} 27. Rbc1 {[%emt 0:00:44] [#]} Qb6 {[%emt 0:09:10][%cal Og6g5] 0x0.000860bd7d19dp-1022s more active pieces.} ({Worse is} 27... Qxd5 28. Rc7 Qe6 29. Qxb4 $15) 28. Qe3 {[%emt 0:00:49]} (28. h4 $17 {was worth a try.}) 28... Qxe3 $19 {[%emt 0:03:14]} 29. Rxe3 {[%emt 0:00:05]} g5 {[%emt 0:02:22][%cal Bg6g5,Bg5h4][%mdl 32]} 30. h4 {[%emt 0:02:14]} (30. Ree1 {was called for.}) 30... gxh4 {[%emt 0:02:18]} 31. f4 {[%emt 0:00:06]} Ng6 {[%emt 0:00:03]} 32. Rf3 {[%emt 0:01:04]} (32. Rc4 $142) 32... Kg7 {[%emt 0:01:03]} 33. Kh2 {[%emt 0:00:28]} Rfa8 {[%emt 0:00:50]} 34. Bd3 {[%emt 0:00:47]} Kf6 {[%emt 0:00:14]} 35. Rc4 {[%emt 0:00:19]} Rd2 {[%emt 0:01:14] White must now prevent ...Ra1.} 36. Rc2 {[%emt 0:00:44]} (36. Rxb4 $142 Ra1 37. Ra4) 36... Rxc2 {[%emt 0:01:03] Black is clearly winning.} 37. Bxc2 {[%emt 0:00:05]} Rc8 {[%emt 0:00:20]} 38. Bd3 {[%emt 0:00:56]} Rc3 {[%emt 0:00:19]} 39. Be2 {[%emt 0:00:30]} Rxf3 {[%emt 0:00:30]} 40. Bxf3 {[%emt 0:00:00]} Nxf4 {[%emt 0:01:29] Weighted Error Value: White=0.55/Black=0.11 (very precise)} 0-1

[Event "Prague Festival-Futures 2022"]
[Site "Prague"]
[Date "2022.06.13"]
[Round "5.1"]
[White "Sowinski, Pawel"]
[Black "Zelbova, Lada"]
[Result "1-0"]
[ECO "A28"]
[WhiteElo "2060"]
[BlackElo "1967"]
[Annotator "TA"]
[PlyCount "89"]
[EventDate "2022.06.07"]
[EventType "tourn"]
[EventCountry "CZE"]
[SourceTitle "playchess.com"]
[Source "ChessBase"]
[SourceQuality "1"]
[TimeControl "40/5400+30:1800+30"]

{[%evp 9,89,11,-1,6,7,14,11,10,7,4,15,12,8,10,16,14,17,0,0,0,0,0,13,-16,-2,-17,13,12,45,54,51,59,53,0,0,0,24,24,24,31,36,37,63,70,63,57,106,106,116,116,227,214,300,295,319,310,914,872,1020,1004,940,915,1036,869,1358,1202,821,802,1549,1257,10141,7115,5683,4956,29976,29977,29979,29980,29976,29976,29985,29985]} 1. c4 {[%emt 0:00:03]} e5 {[%emt 0:00:05]} 2. Nc3 {[%emt 0:00:10]} Nf6 {[%emt 0:00:08]} 3. Nf3 {[%emt 0:00:03]} Nc6 {[%emt 0:00:08]} 4. e4 {[%emt 0:00:02]} Bb4 {[%emt 0:00:06]} 5. d3 {[%emt 0:00:05]} d6 {[%emt 0:00:05]} 6. a3 {[%emt 0:00:03] A28: English Opening: Four Knights Variation.} Bc5 {[%emt 0:00:04]} 7. b4 {[%emt 0:00:32]} Bb6 {[%emt 0:00:05]} 8. Be3 {[%emt 0:01:12] The position is equal.} Bg4 {[%emt 0:13:03]} 9. Be2 {[%emt 0:00:20]} Bxf3 {[%emt 0:04:24]} 10. Bxf3 {[%emt 0:00:02]} Nd4 {[%emt 0:00:40]} 11. Na4 {[%emt 0:04:11]} Nxf3+ {[%emt 0:00:47]} 12. Qxf3 {[%emt 0:00:03]} Bxe3 {[%emt 0:21:49]} 13. fxe3 {[%emt 0:01:10]} O-O {[%emt 0:02:37]} 14. O-O {[%emt 0:00:07] [#]} Qd7 $146 {[%emt 0:09:08]} ({Predecessor:} 14... c6 15. Nc3 Qc7 16. Qg3 Kh8 17. Rf5 Rae8 18. a4 Re6 19. a5 a6 20. h3 Nd7 {½-½ (27) Yeo,G (2482)-Asquith,J (2393) ICCF email 2020}) 15. Nc3 {[%emt 0:00:03]} c6 {[%emt 0:00:07]} 16. d4 {[%emt 0:15:20][%cal Bd3d4,Bd4e5][%mdl 32]} Qg4 {[%emt 0:09:01]} 17. c5 {[%emt 0:04:40]} Qxf3 {[%emt 0:02:16]} (17... a5 {seems wilder.} 18. cxd6 Qe6 19. Qf5 Qxf5 20. exf5 exd4 21. exd4 axb4 22. axb4 Rad8) 18. gxf3 {[%emt 0:02:25]} Rfd8 {[%emt 0:12:04]} 19. cxd6 {[%emt 0:02:44]} Rxd6 {[%emt 0:00:33]} (19... exd4 $2 20. exd4 Rxd6 21. e5 Rxd4 22. exf6 $18) 20. dxe5 {[%emt 0:01:00]} Rd3 {[%emt 0:00:11][%csl LRc3,LRe3]} 21. Nd1 {[%emt 0:21:03]} ({White should try} 21. Na4 $14 Nd7 22. e6 fxe6 23. Rfd1) 21... Nd7 $11 {[%emt 0:01:08]} 22. Nb2 {[%emt 0:02:27]} Rxe3 {[%emt 0:03:26]} (22... Rc3 $5 {[%cal Rd7e5]}) 23. Nc4 $36 {[%emt 0:00:08][%mdl 2048] White has good play.} Rc3 {[%emt 0:00:40]} 24. Rac1 {[%emt 0:00:02]} Rxc1 {[%emt 0:01:00]} 25. Rxc1 $14 {[%emt 0:00:02][%mdl 4096] Endgame KRN-KRN} b5 {[%emt 0:03:28]} 26. Rd1 $1 {[%emt 0:04:00]} bxc4 {[%emt 0:03:39]} 27. Rxd7 {[%emt 0:00:02] KR-KR} a5 {[%emt 0:05:47] Black is now going downhill.} (27... Kf8 $14 {might be stronger.}) 28. Rc7 $16 {[%emt 0:03:03] White is more active.} axb4 {[%emt 0:04:33]} 29. axb4 {[%emt 0:00:01]} Rb8 {[%emt 0:00:39]} (29... Kf8 $16 {was necessary.}) 30. Rxc6 $18 {[%emt 0:00:07]} g5 {[%emt 0:00:35]} (30... Kf8 {was worth a try.} 31. Rxc4 g5) 31. Rxc4 {[%emt 0:00:19]} Kf8 {[%emt 0:00:59]} 32. h4 {[%emt 0:03:02]} gxh4 {[%emt 0:01:55] [#]} (32... h6 33. Kg2 Ke7) 33. f4 {[%emt 0:01:03]} Rb6 {[%emt 0:00:53]} 34. Kg2 {[%emt 0:00:09]} Ke7 {[%emt 0:00:27]} 35. Kh3 {[%emt 0:00:18]} Kd7 {[%emt 0:00:32]} 36. Kxh4 {[%emt 0:00:11]} Rh6+ {[%emt 0:00:32]} 37. Kg4 {[%emt 0:02:33]} Rg6+ {[%emt 0:00:08]} 38. Kf3 {[%emt 0:00:01] [#] Hoping for b5.} Rh6 {[%emt 0:01:00]} 39. b5 {[%emt 0:00:54]} Rh3+ {[%emt 0:00:15]} 40. Kg4 {[%emt 0:00:00]} Rb3 {[%emt 0:00:00]} 41. Rc5 {[%emt 0:00:04] Threatening mate with Kg5.} Rb4 {[%emt 0:14:23]} 42. Kf5 {[%emt 0:00:43] White mates.} Kd8 {[%emt 0:06:21]} 43. Kf6 {[%emt 0:00:48]} Rxe4 {[%emt 0:00:50]} 44. f5 {[%emt 0:00:01]} h5 {[%emt 0:02:59]} 45. Kxf7 {[%emt 0:00:15] Weighted Error Value: White=0.04 (flawless) /Black=0.47} 1-0